bitfinex-derivatives/quotes_ETHF0:USTF0_20250505
["timestamp","ask_amount","ask_price","bid_price","bid_amount"]
[1746452008085,1.7169,1796.8,1796.5,1.73296836]
[1746452008284,4.32081,1796.9,1796.8,1.11303]
[1746452008582,1.7169,1797.0,1796.8,0.01536836]
[1746452008786,1.11297,1796.9,1796.8,1.12836836]
[1746452009086,0.70983481,1797.1,1797.0,1.11291]
[1746452009386,0.70983481,1797.1,1797.0,1.12827836]
[1746452009581,0.70983481,1797.1,1797.0,8.90107836]
[1746452009785,16.47920195,1797.4,1797.0,7.78816836]
[1746452010081,1.11291,1797.0,1796.9,1.6782]
[1746452010584,2.68231,1797.0,1796.9,1.6782]
[1746452011183,2.68231,1797.0,1796.9,1.69356836]
[1746452011585,2.68231,1797.0,1796.9,2.80653836]
[1746452011773,1.11289,1797.1,1797.0,1.11288]
[1746452012086,1.11279,1797.3,1797.2,1.11275]
[1746452012388,16.47920195,1797.4,1797.3,1.11272]
[1746452012583,16.47920195,1797.4,1797.3,2.75428836]
[1746452012885,16.47920195,1797.4,1797.3,7.75428836]
[1746452013278,1.11246,1797.8,1797.3,3.43841262]
[1746452013479,1.11249,1797.7,1797.6,1.11249]
[1746452013686,1.11247,1797.7,1797.6,4.565]
[1746452013888,4.30585738,1797.7,1797.6,4.565]
[1746452014188,4.30585738,1797.7,1797.6,5.67753]
[1746452014484,1.11246,1797.8,1797.7,1.11247]
[1746452014679,2.74426,1797.8,1797.7,1.11247]
[1746452014886,1.11247,1797.7,1797.6,4.565]
[1746452015081,5.95377,1797.7,1797.6,4.565]
[1746452015283,5.95377,1797.7,1797.3,3.2078]
[1746452015284,1.11266,1797.4,1797.3,7.7728]
[1746452015479,1.11266,1797.4,1797.3,8.88552]
[1746452015679,1.56158738,1797.4,1797.3,8.88552]
[1746452015880,1.6335,1797.5,1797.4,1.11266]
[1746452016187,5.49216374,1797.7,1797.6,1.11253]
[1746452016687,5.49216374,1797.7,1797.5,2.82415]
[1746452016885,7.05375112,1797.7,1797.4,1.11263]
[1746452017186,1.11263,1797.5,1797.4,1.11266]
[1746452017589,1.11266,1797.4,1797.3,2.8243]
[1746452017891,2.80396,1797.4,1797.3,1.1127]
[1746452018085,1.11258,1797.6,1797.5,1.11257]
[1746452018281,1.11263,1797.5,1797.4,1.11261]
[1746452018690,2.80393,1797.5,1797.4,1.11261]
[1746452018984,2.40082243,1797.5,1797.4,1.11266]
[1746452019184,0.70952243,1797.5,1797.4,4.32046]
[1746452019490,0.70952243,1797.5,1797.4,5.89126]
[1746452020391,1.82212243,1797.5,1797.4,2.68346]
[1746452020586,0.70952243,1797.5,1797.4,2.68346]
[1746452021091,0.70952243,1797.5,1797.4,5.89126]
[1746452021285,0.70952243,1797.5,1797.4,2.68346]
[1746452021679,1.6673,1797.5,1797.4,2.68346]
[1746452022085,5.49216374,1797.8,1797.5,2.7815]
[1746452022278,7.05375112,1797.8,1797.7,1.11247]
[1746452022483,8.16616112,1797.8,1797.7,1.11247]
[1746452022885,7.05375112,1797.8,1797.7,1.11247]
[1746452023290,8.16616112,1797.8,1797.7,1.11247]
[1746452023485,7.05375112,1797.8,1797.7,1.11247]
[1746452023691,5.49216374,1797.8,1797.7,1.11247]
[1746452023990,5.49216374,1797.8,1797.7,5.67647]
[1746452024381,6.60457374,1797.8,1797.7,4.564]
[1746452024583,5.88179738,1797.8,1797.7,4.564]
[1746452024793,5.88179738,1797.8,1797.7,5.67647]
[1746452024992,2.67399738,1797.8,1797.7,5.67647]
[1746452025293,1.56158738,1797.8,1797.7,1.11247]
[1746452025597,1.11238,1797.9,1797.8,1.11241]
[1746452025784,7.05375112,1798.0,1797.9,1.11235]
[1746452026190,8.16604112,1798.0,1797.9,1.11235]
[1746452026390,7.05375112,1798.0,1797.9,1.11235]
[1746452026689,5.49216374,1798.0,1797.9,1.11235]
[1746452027087,5.49216374,1798.0,1797.9,6.11235]
[1746452027288,5.49216374,1798.0,1797.9,1.11235]
[1746452027686,7.32288499,1798.1,1798.0,1.11229]
[1746452027894,7.32288499,1798.1,1798.0,9.02849]
[1746452028194,20.24932898,1798.3,1798.0,9.02849]
[1746452028195,6.21514187,1798.3,1798.2,1.11216]
[1746452028395,7.77672925,1798.3,1798.2,1.11216]
[1746452028690,1.11235,1798.0,1797.8,4.525]
[1746452028994,1.11234,1798.0,1797.9,1.11231]
[1746452029187,2.67392738,1798.0,1797.9,1.11231]
[1746452029393,4.32005,1798.1,1798.0,1.11229]
[1746452029690,1.56158738,1798.1,1798.0,1.11229]
[1746452029888,7.32724187,1798.3,1798.2,1.11216]
[1746452030097,6.21514187,1798.3,1798.2,5.63716]
[1746452030594,6.21514187,1798.3,1798.2,7.23986]
[1746452031197,1.11206,1798.4,1798.3,1.1121]
[1746452031384,10.53068499,1798.6,1798.5,1.11198]
[1746452031696,8.88447237,1798.6,1798.5,1.11198]
[1746452031995,12.09227237,1798.6,1798.2,4.525]
[1746452032192,1.1121,1798.4,1798.3,1.11207]
[1746452032794,2.67368738,1798.4,1798.3,1.11207]
[1746452032990,1.56158738,1798.4,1798.3,1.11207]
[1746452033197,2.67362738,1798.4,1798.3,1.11207]
[1746452033390,1.56158738,1798.4,1798.3,1.11207]
[1746452033894,8.43484499,1798.6,1798.5,1.11198]
[1746452034089,9.99643237,1798.6,1798.5,1.11198]
[1746452034291,9.99643237,1798.6,1798.2,4.524]
[1746452034292,14.87214237,1798.6,1798.2,4.524]
[1746452034496,4.31989,1798.4,1798.3,1.11206]
[1746452034796,4.31989,1798.4,1798.2,4.524]
[1746452034797,1.1121,1798.3,1798.2,5.6361]
[1746452035190,2.67368738,1798.3,1798.2,1.1121]
[1746452035396,2.67368738,1798.3,1798.2,5.6361]
[1746452035597,2.67368738,1798.3,1798.2,4.524]
[1746452036094,2.67368738,1798.3,1798.2,5.63616]
[1746452036490,1.56158738,1798.3,1798.2,5.63616]
[1746452036692,2.67368738,1798.3,1798.2,1.11216]
[1746452037196,1.11216,1798.2,1798.1,5.63618]
[1746452037700,1.56158738,1798.2,1798.1,5.63618]
[1746452037894,1.1121,1798.4,1798.3,1.1121]
[1746452038090,1.11195,1798.6,1798.5,1.11198]
[1746452038291,1.56158738,1798.6,1798.5,1.11198]
[1746452038791,2.67350738,1798.6,1798.5,5.63598]
[1746452039093,1.56158738,1798.6,1798.5,1.38073526]
[1746452039301,1.56158738,1798.6,1798.5,2.49271526]
[1746452039601,5.69005,1798.7,1798.6,1.11192]
[1746452039787,7.25163738,1798.7,1798.6,1.11192]
[1746452040988,7.25163738,1798.7,1798.5,3.00593526]
[1746452040989,1.11192,1798.6,1798.5,4.11787526]
[1746452041193,2.68822,1798.6,1798.5,1.38073526]
[1746452041395,4.24980738,1798.6,1798.5,2.49271526]
[1746452041587,1.5763,1798.6,1798.5,2.49271526]
[1746452041792,1.11175,1798.9,1798.5,8.00593526]
[1746452041988,2.68799,1799.0,1798.5,3.87263526]
[1746452042198,1.5763,1799.0,1798.9,1.11173]
[1746452042499,4.24962738,1799.0,1798.9,5.63573]
[1746452042693,11.64225499,1799.2,1799.1,1.11161]
[1746452043003,13.36095499,1799.2,1799.1,1.11161]
[1746452043295,9.04158499,1799.2,1799.1,1.11161]
[1746452043808,7.32288499,1799.2,1799.1,1.11161]
[1746452044004,7.32288499,1799.2,1799.1,4.31941]
[1746452044193,2.83015,1799.4,1799.3,1.11148]
[1746452044399,2.83015,1799.4,1799.3,5.63448]
[1746452044599,2.67303738,1799.4,1799.3,5.63448]
[1746452044801,1.11142,1799.4,1799.3,5.63445]
[1746452045102,2.83012,1799.4,1799.3,5.63445]
[1746452045596,1.7187,1799.4,1799.3,5.63445]
[1746452045806,1.11142,1799.4,1799.3,4.523]
[1746452045993,1.6638,1799.4,1799.3,5.63442]
[1746452046400,7.32288499,1799.6,1799.5,1.11136]
[1746452046401,8.43418499,1799.6,1799.5,1.11136]
[1746452046600,10.09798499,1799.6,1799.5,1.11136]
[1746452047292,8.98668499,1799.6,1799.5,1.11136]
[1746452047497,7.32288499,1799.6,1799.5,1.11136]
[1746452047693,8.88447237,1799.6,1799.4,1.6232]
[1746452047900,2.77516,1799.5,1799.4,1.6232]
[1746452048101,1.11142,1799.4,1799.3,5.63447]
[1746452048404,2.77702,1799.4,1799.3,5.63447]
[1746452048609,2.77702,1799.4,1799.3,4.523]
[1746452048809,2.77702,1799.4,1799.3,5.63448]
[1746452048998,8.15368499,1800.3,1799.3,8.84228]
[1746452049201,1.11128,1799.7,1799.6,1.11127]
[1746452049398,1.56158738,1799.9,1799.8,1.11117]
[1746452049996,1.56158738,1799.9,1799.8,2.79547]
[1746452050203,2.77659,1800.1,1800.0,1.11105]
[1746452050600,6.43498738,1800.1,1799.8,2.79543]
[1746452050905,1.11105,1800.0,1799.9,1.11111]
[1746452051103,2.77665,1800.0,1799.9,1.11111]
[1746452051301,1.11104,1800.1,1800.0,1.11104]
[1746452051503,1.56158738,1800.1,1799.8,1.6843]
[1746452051810,1.11111,1799.9,1799.8,2.79546]
[1746452052196,1.11117,1799.8,1799.7,5.3141]
[1746452052402,2.68307,1799.8,1799.7,5.63324]
[1746452052605,1.5719,1799.8,1799.7,5.63324]
[1746452052803,1.5719,1799.8,1799.7,7.26874]
[1746452053005,2.68307,1799.8,1799.7,4.522]
[1746452053306,4.24465738,1799.8,1799.7,4.521]
[1746452054003,7.41960042,1801.0,1799.7,9.521]
[1746452054204,7.55673,1800.4,1799.8,0.8543]
[1746452054411,1.11108,1800.0,1799.8,0.8543]
[1746452054599,2.76311,1799.9,1799.8,4.521]
[1746452054805,2.76311,1799.9,1799.8,5.63217]
[1746452055001,1.1113,1799.6,1799.5,1.11136]
[1746452055302,1.1112,1799.8,1799.5,7.29927]
[1746452055500,1.1112,1799.8,1799.7,1.11118]
[1746452055501,1.652,1799.8,1799.7,1.11118]
[1746452055909,2.76317,1799.8,1799.7,1.11118]
[1746452056110,1.652,1799.8,1799.7,1.11118]
[1746452057007,4.3189,1800.0,1799.9,1.11111]
[1746452057205,4.68041738,1800.0,1799.9,1.11111]
[1746452057402,3.56931738,1800.0,1799.9,1.11111]
[1746452057604,1.652,1800.1,1800.0,1.11105]
[1746452057908,1.652,1800.1,1800.0,2.77315]
[1746452058503,3.2078,1800.3,1800.2,1.11093]
[1746452058810,3.64366464,1800.5,1800.4,1.1108]
[1746452059005,3.64366464,1800.5,1800.4,5.5888]
[1746452059409,4.75426464,1800.8,1800.4,4.478]
[1746452059602,6.73118202,1800.8,1800.7,1.11062]
[1746452060002,1.11064,1800.7,1800.6,1.11066]
[1746452060201,6.29535738,1800.7,1800.6,1.11066]
[1746452060603,1.6154,1800.7,1800.6,1.11066]
[1746452061112,3.56931738,1800.7,1800.4,7.6858]
[1746452061316,2.81928,1800.6,1800.5,1.11071]
[1746452061513,1.7086,1800.6,1800.5,5.58771]
[1746452061814,4.75424464,1800.8,1800.7,1.11062]
[1746452062111,4.00518202,1800.8,1800.7,1.11062]
[1746452062306,3.64366464,1800.8,1800.7,1.11062]
[1746452062807,3.64366464,1800.8,1800.7,2.83572]
[1746452063707,3.64366464,1800.8,1800.7,7.83572]
[1746452064012,1.7122,1801.2,1801.1,1.11037]
[1746452064210,3.18402738,1801.2,1801.1,5.58737]
[1746452064403,2.07371738,1801.2,1801.1,5.58737]
[1746452064604,3.18402738,1801.2,1801.1,4.477]
[1746452064806,2.07371738,1801.2,1801.1,5.58737]
[1746452065715,1.7122,1801.2,1801.1,5.58737]
[1746452066220,3.18402738,1801.2,1801.1,5.58737]
[1746452066614,3.2078,1801.3,1801.2,1.11031]
[1746452066911,3.56931738,1801.3,1801.2,1.11031]
[1746452067116,3.2078,1801.3,1801.2,2.77591]
[1746452067316,1.11015,1801.5,1801.4,1.11012]
[1746452067614,1.47166738,1801.5,1801.4,1.11012]
[1746452068714,0.36151738,1801.5,1801.4,1.11012]
[1746452068920,1.47164738,1801.5,1801.4,1.11012]
[1746452069211,0.36151738,1801.5,1801.4,1.11012]
[1746452069414,1.47164738,1801.5,1801.4,1.11012]
[1746452069619,1.47168738,1801.5,1801.4,1.11019]
[1746452069913,0.36151738,1801.5,1801.4,1.11019]
[1746452070320,1.10996,1801.8,1801.7,1.10994]
[1746452070519,0.36151738,1801.8,1801.7,5.58494]
[1746452071709,3.2078,1801.9,1801.8,1.10994]
[1746452071910,1.10984,1802.0,1801.9,1.10983]
[1746452072110,1.10986,1802.0,1801.9,1.10986]
[1746452072411,3.64366464,1802.3,1802.2,1.10969]
[1746452072711,3.64366464,1802.3,1802.2,5.58469]
[1746452073215,4.00518202,1802.3,1802.2,5.58469]
[1746452073512,3.64366464,1802.3,1802.2,5.58469]
[1746452073713,2.38591464,1802.3,1802.2,10.58469]
[1746452073919,7.32288499,1802.5,1802.4,1.10957]
[1746452074117,9.15360624,1802.6,1802.2,10.58469]
[1746452074118,3.63150081,1802.8,1802.3,7.66781]
[1746452074311,3.99301819,1802.8,1802.4,2.4823]
[1746452074613,1.10941,1802.7,1802.6,1.10944]
[1746452074819,1.10941,1802.7,1802.6,5.58344]
[1746452075020,1.47092738,1802.7,1802.6,5.58344]
[1746452075214,0.36151738,1802.7,1802.6,5.58344]
[1746452075416,1.47090738,1802.7,1802.6,4.474]
[1746452075811,9.67870738,1802.7,1802.6,4.474]
[1746452076224,1.10963,1802.3,1802.2,1.6973]
[1746452076422,1.10963,1802.3,1802.2,6.1703]
[1746452076628,3.2078,1802.5,1802.3,1.10963]
[1746452076828,3.2078,1802.5,1802.4,1.10957]
[1746452077723,4.31734,1802.5,1802.4,1.10957]
[1746452077922,1.10959,1802.4,1802.3,1.10959]
[1746452078222,1.10959,1802.4,1802.3,1.10958]
[1746452078720,5.9813,1802.7,1802.2,6.1703]
[1746452078921,1.10955,1802.5,1802.4,1.10956]
[1746452079126,4.67874738,1802.7,1802.3,2.77405]
[1746452079422,4.67874738,1802.7,1802.6,1.10945]
[1746452079624,1.10949,1802.6,1802.4,1.7361]
[1746452079829,1.47090738,1802.7,1802.6,4.472]
[1746452080035,1.10963,1802.3,1802.2,1.10965]
[1746452080226,2.77369,1802.6,1802.3,1.10962]
[1746452080227,1.10962,1802.4,1802.3,1.10962]
[1746452080526,1.10963,1802.3,1802.2,4.472]
[1746452080926,1.47114738,1802.3,1802.2,4.472]
[1746452081129,1.10984,1802.0,1801.9,4.472]
[1746452081434,3.2078,1802.2,1801.9,4.472]
[1746452081634,1.10978,1802.1,1801.9,4.472]
[1746452081824,4.31762,1802.0,1801.9,4.472]
[1746452082132,1.47133738,1802.0,1801.9,4.472]
[1746452082335,4.67913738,1802.0,1801.9,4.472]
[1746452082723,1.11,1801.7,1801.6,4.472]
[1746452082927,5.98285,1801.7,1801.4,1.11017]
[1746452083128,6.34436738,1801.7,1801.3,5.5822]
[1746452083435,1.11017,1801.5,1801.4,1.11017]
[1746452083631,1.11019,1801.4,1801.3,4.472]
[1746452084337,1.47170738,1801.4,1801.3,4.472]
[1746452084633,5.36151738,1801.4,1800.9,4.472]
[1746452084837,3.2078,1801.1,1800.9,4.472]
[1746452085028,1.11043,1801.0,1800.9,4.472]
[1746452085429,1.47194738,1801.0,1800.9,4.472]
[1746452086027,0.36151738,1801.0,1800.9,5.5825]
[1746452086528,6.84955,1801.3,1800.9,5.58245]
[1746452086737,1.11043,1801.0,1800.9,4.472]
[1746452087228,0.36151738,1801.0,1800.9,5.5825]
[1746452087538,1.11022,1801.4,1801.3,1.11025]
[1746452087734,1.11022,1801.4,1801.0,3.57483]
[1746452088035,1.47173738,1801.4,1801.3,1.11025]
[1746452088234,0.36151738,1801.4,1801.3,5.51525]
[1746452088634,1.47170738,1801.4,1801.3,5.51525]
[1746452088832,1.47170738,1801.4,1801.3,4.405]
[1746452089736,0.36151738,1801.4,1801.3,5.51525]
[1746452091133,0.8661,1801.8,1801.5,1.11013]
[1746452091339,0.8661,1801.8,1801.7,1.11]
[1746452091535,3.2078,1801.9,1801.8,1.10994]
[1746452091737,4.31773,1801.9,1801.8,1.10994]
[1746452092237,3.2078,1801.9,1801.8,1.10994]
[1746452092537,3.2078,1801.9,1801.7,4.406]
[1746452092736,3.2078,1801.9,1801.8,1.10994]
[1746452093437,3.2078,1802.1,1802.0,1.10981]
[1746452093647,1.10972,1802.2,1801.9,4.38249]
[1746452093937,1.10968,1802.3,1802.2,1.10968]
[1746452094139,4.31742,1802.4,1802.3,1.10963]
[1746452094340,1.10964,1802.3,1802.2,1.10964]
[1746452094538,2.77421,1802.3,1801.8,4.406]
[1746452094740,1.10988,1801.9,1801.8,5.5159]
[1746452095630,4.31766,1802.0,1801.9,1.10988]
[1746452095838,1.10988,1801.9,1801.8,5.51588]
[1746452096036,1.10988,1801.9,1801.8,4.406]
[1746452097037,1.10988,1801.9,1801.8,5.51594]
[1746452097343,1.10988,1801.9,1801.6,5.61923631]
[1746452097539,1.1283,1802.0,1801.9,1.10988]
[1746452097745,3.2078,1802.2,1801.8,2.77477]
[1746452098044,1.1098,1802.1,1802.0,1.10978]
[1746452098240,1.10973,1802.2,1802.1,1.10972]
[1746452098647,1.10979,1802.1,1802.0,1.10977]
[1746452099842,2.77479,1802.1,1802.0,1.10977]
[1746452100145,1.665,1802.1,1802.0,1.10977]
[1746452100337,3.2078,1802.2,1802.1,1.10976]
[1746452100842,4.31749,1802.2,1802.1,1.10976]
[1746452101148,3.2078,1802.4,1802.1,1.10976]
[1746452101443,1.5695,1802.3,1802.2,1.10969]
[1746452102239,3.2078,1802.4,1802.3,1.10963]
[1746452102742,4.7773,1802.6,1802.5,1.10951]
[1746452102934,4.7773,1802.6,1802.5,5.51451]
[1746452103342,3.2078,1802.6,1802.5,7.15551]
[1746452103539,5.45252172,1802.7,1802.6,1.10945]
[1746452103743,7.32288499,1802.8,1802.7,1.10939]
[1746452103941,8.90268499,1803.1,1803.0,1.1092]
[1746452104250,7.32288499,1803.1,1803.0,5.5142]
[1746452104848,7.32288499,1803.1,1803.0,7.1552]
[1746452105847,7.32288499,1803.1,1803.0,5.5142]
[1746452106144,8.90268499,1803.1,1802.8,6.99528]
[1746452106346,8.90268499,1803.1,1803.0,1.1092]
[1746452106745,7.32288499,1803.1,1803.0,1.1092]
[1746452106945,3.2078,1803.2,1803.1,1.10914]
[1746452107245,3.2078,1803.2,1803.1,5.51314]
[1746452107741,4.9144,1803.4,1803.3,1.10902]
[1746452107946,3.2078,1803.4,1803.3,1.10902]
[1746452108252,1.7066,1803.7,1803.6,1.10883]
[1746452108450,1.7066,1803.7,1803.6,5.51283]
[1746452108648,1.7066,1803.7,1803.6,4.404]
[1746452108850,2.81537,1803.7,1803.6,4.404]
[1746452109053,2.81537,1803.7,1803.5,1.1264]
[1746452109054,1.10908,1803.2,1803.1,5.886]
[1746452109254,3.2078,1803.2,1803.1,1.10914]
[1746452109446,1.7079,1803.4,1803.1,1.10914]
[1746452109650,1.7079,1803.4,1803.3,1.10902]
[1746452110660,2.81686,1803.4,1803.3,1.10902]
[1746452110859,1.10902,1803.3,1803.2,3.89754]
[1746452111055,1.10902,1803.3,1803.2,1.10903]
[1746452111262,2.8169,1803.4,1803.3,1.10902]
[1746452111460,1.7079,1803.4,1803.3,1.10902]
[1746452112160,2.81686,1803.4,1803.3,1.10902]
[1746452112561,1.10902,1803.3,1803.2,2.82832]
[1746452112764,1.10908,1803.2,1803.1,2.26473]
[1746452112959,3.2078,1804.0,1803.8,0.1]
[1746452113159,1.10859,1804.0,1803.9,5.4806]
[1746452113466,1.7054,1804.1,1804.0,1.10859]
[1746452113654,2.81393,1804.1,1803.9,3.8252]
[1746452113855,2.81397,1804.1,1804.0,5.51159]
[1746452114056,1.7054,1804.1,1804.0,5.51159]
[1746452115357,2.81393,1804.1,1804.0,4.403]
[1746452115664,1.7054,1804.1,1804.0,1.10859]
[1746452115864,2.81395,1804.1,1804.0,1.10859]
[1746452116061,1.10859,1804.0,1803.9,4.402]
[1746452116268,5.94919,1804.0,1803.9,4.402]
[1746452116754,2.74139,1804.0,1803.9,4.402]
[1746452116959,5.94919,1804.0,1803.9,4.402]
[1746452117955,5.94919,1804.0,1803.9,5.51065]
[1746452118153,4.8406,1804.0,1803.9,5.51065]
[1746452118364,8.43131499,1804.3,1804.2,1.10846]
[1746452118567,7.32288499,1804.3,1804.2,1.10846]
[1746452118770,7.32288499,1804.3,1803.9,4.402]
[1746452118967,1.10859,1804.0,1803.9,5.5106]
[1746452119461,4.31639,1804.0,1803.9,5.51065]
[1746452119664,2.82727,1804.1,1804.0,1.10859]
[1746452119864,1.7187,1804.1,1804.0,1.10859]
[1746452120065,1.7187,1804.1,1804.0,2.68689]
[1746452120266,3.2078,1804.4,1804.3,1.1084]
[1746452120662,3.2078,1804.4,1804.3,4.441]
[1746452120663,4.31614,1804.4,1804.3,4.441]
[1746452120863,3.2078,1804.4,1804.3,5.5494]
[1746452121062,3.2078,1804.6,1804.5,1.10828]
[1746452121367,2.23648,1804.7,1804.3,8.3204]
[1746452121368,8.43102499,1804.8,1804.7,1.10816]
[1746452121561,7.32288499,1804.8,1804.7,5.54816]
[1746452121966,7.32288499,1804.8,1804.7,10.54816]
[1746452123356,7.32288499,1804.8,1804.7,5.54816]
[1746452123559,6.11047499,1804.8,1804.7,13.75596]
[1746452123761,11.00375268,1805.3,1805.2,1.20785]
[1746452123971,11.00375268,1805.3,1805.2,5.64785]
[1746452124165,12.63075268,1805.3,1805.2,10.64785]
[1746452124461,11.00375268,1805.3,1805.2,10.64785]
[1746452124669,1.5883,1805.5,1805.4,1.10773]
[1746452125769,1.59482893,1805.5,1805.4,1.10773]
[1746452127070,1.59482893,1805.5,1805.2,4.54]
[1746452127264,3.2078,1805.4,1805.3,1.10779]
[1746452127570,4.31553,1805.4,1805.3,1.10779]
[1746452127769,4.8907,1805.4,1805.3,1.10779]
[1746452128263,4.8907,1805.4,1805.2,4.54]
[1746452128471,1.10779,1805.3,1805.2,4.54]
[1746452128670,2.79069,1805.3,1805.2,4.54]
[1746452128870,1.6829,1805.3,1805.2,5.64785]
[1746452129067,2.79069,1805.3,1805.2,5.64785]
[1746452129268,1.6829,1805.3,1805.2,5.64785]
[1746452130163,1.6829,1805.3,1805.2,13.85565]
[1746452130371,1.6829,1805.3,1805.2,8.85565]
[1746452130674,1.6829,1805.3,1805.2,5.64785]
[1746452131568,1.6829,1805.3,1805.2,8.85565]
[1746452131773,0.00652893,1805.5,1805.4,1.10773]
[1746452131969,1.67652893,1805.5,1805.4,1.10773]
[1746452134775,7.29441844,1805.9,1805.8,1.10748]
[1746452134969,7.29441844,1805.9,1805.8,5.54448]
[1746452135978,8.40183844,1805.9,1805.8,5.54448]
[1746452136375,7.29441844,1805.9,1805.8,5.54448]
[1746452136675,1.2666,1806.4,1806.0,1.10736]
[1746452136877,1.1072,1806.3,1806.2,1.10718]
[1746452137068,1.10718,1806.3,1806.2,5.5432]
[1746452137474,2.37375,1806.4,1806.3,1.10718]
[1746452137671,1.2666,1806.4,1806.2,5.54318]
[1746452137875,1.629,1806.3,1806.2,5.54318]
[1746452140477,2.73618,1806.3,1806.2,5.54318]
[1746452140779,1.629,1806.3,1806.2,5.54318]
[1746452141175,2.73618,1806.3,1806.2,5.54318]
[1746452141477,1.629,1806.3,1806.2,5.54318]
[1746452142478,2.73618,1806.3,1806.2,4.436]
[1746452142678,1.10718,1806.3,1806.2,5.54324]
[1746452142877,1.10718,1806.3,1806.2,4.436]
[1746452143071,1.10718,1806.3,1806.2,5.54319]
[1746452143277,4.83918,1806.3,1806.2,5.54319]
[1746452143785,8.04698,1806.3,1806.2,4.436]
[1746452143981,1.10724,1806.2,1805.9,4.435]
[1746452144280,4.31516,1806.0,1805.9,4.435]
[1746452144481,1.10754,1805.7,1805.6,56.235]
[1746452144683,6.1691,1805.9,1805.7,1.10751]
[1746452144986,6.1691,1805.9,1805.7,1.10749]
[1746452145179,1.10751,1805.8,1805.7,1.10749]
[1746452145379,1.6417,1805.8,1805.7,1.10749]
[1746452145683,1.6417,1805.8,1805.2,0.1]
[1746452145684,0.1,1805.3,1805.2,0.1]
[1746452145878,2.7697,1805.2,1804.4,0.85733]
[1746452146079,3.2078,1804.7,1804.6,1.10819]
[1746452146283,3.2078,1804.9,1804.8,1.1081]
[1746452146484,4.4347,1805.2,1805.0,1.10796]
[1746452146782,1.10791,1805.1,1805.0,4.435]
[1746452146982,4.4347,1805.2,1805.0,5.54297]
[1746452147184,5.54258,1805.2,1805.0,4.435]
[1746452147385,1.10791,1805.1,1805.0,4.435]
[1746452147978,1.10808,1804.9,1804.7,1.1081]
[1746452148283,4.31583,1804.9,1804.8,4.435]
[1746452148479,4.31583,1804.9,1804.4,0.85733]
[1746452148681,3.2078,1804.6,1804.5,1.10828]
[1746452149286,1.10828,1804.5,1804.4,5.38733]
[1746452149587,2.67578,1804.5,1804.4,5.38733]
[1746452149982,1.5675,1804.5,1804.4,6.49567]
[1746452150181,2.67578,1804.5,1804.4,5.38733]
[1746452150481,1.5675,1804.5,1804.4,6.49567]
[1746452150691,2.67578,1804.5,1804.4,5.38733]
[1746452150884,1.5675,1804.5,1804.4,6.49567]
[1746452151390,3.2078,1804.6,1804.4,5.38733]
[1746452151580,3.2078,1804.6,1804.5,1.10828]
[1746452152181,3.2078,1804.6,1804.5,2.77798]
[1746452153187,3.2078,1804.6,1804.5,1.10828]
[1746452153387,3.2078,1804.6,1804.5,2.77798]
[1746452154088,4.31604,1804.6,1804.5,1.10828]
[1746452154285,3.2078,1804.6,1804.4,6.49562]
[1746452154480,1.5719,1804.5,1804.4,6.49567]
[1746452156282,3.2078,1805.0,1804.6,2.77055]
[1746452156478,1.6989,1804.9,1804.8,1.1081]
[1746452156792,1.6989,1804.9,1804.8,5.6391]
[1746452156985,2.4201,1805.2,1804.8,5.6391]
[1746452157186,2.4201,1805.2,1805.1,1.10791]
[1746452157393,0.1,1805.3,1805.2,1.10785]
[1746452157585,0.1,1805.3,1805.2,5.63885]
[1746452158291,1.7656,1805.3,1805.2,5.63885]
[1746452158990,2.87339,1805.3,1805.2,5.63885]
[1746452159193,1.7656,1805.3,1805.2,5.63885]
[1746452159585,0.1,1805.3,1805.2,5.63885]
[1746452159778,1.7656,1805.3,1805.2,5.63885]
[1746452160392,2.87339,1805.3,1805.2,5.63885]
[1746452160590,1.7656,1805.3,1805.2,5.63885]
[1746452160786,0.1,1805.3,1805.2,5.63885]
[1746452161789,3.2078,1805.7,1805.2,12.7388]
[1746452161992,6.1746,1806.0,1805.6,2.76902]
[1746452162185,1.10744,1805.9,1805.8,1.10744]
[1746452162385,1.10744,1805.9,1805.7,4.531]
[1746452162386,1.10748,1805.8,1805.7,4.531]
[1746452162588,4.31528,1805.8,1805.7,4.531]
[1746452162795,9.31528,1805.8,1805.7,4.531]
[1746452163184,13.04728,1805.8,1805.7,4.531]
[1746452163387,1.10779,1805.3,1805.2,1.10783]
[1746452163598,1.10779,1805.3,1805.2,5.63783]
[1746452163789,1.10779,1805.3,1805.2,5.63785]
[1746452163989,1.10779,1805.3,1805.0,1.3508]
[1746452163990,5.97721,1805.4,1805.0,1.3508]
[1746452164296,1.10779,1805.3,1805.2,4.53]
[1746452164594,6.01169,1805.3,1805.2,4.53]
[1746452164893,11.01169,1805.3,1805.2,4.53]
[1746452165092,1.1081,1804.8,1804.7,56.336]
[1746452165296,4.3159,1804.8,1804.7,4.53]
[1746452165487,9.3159,1804.8,1804.7,4.53]
[1746452165789,4.3159,1804.8,1804.7,4.53]
[1746452166001,1.10827,1804.6,1804.5,1.10828]
[1746452166296,4.84027,1804.6,1804.5,5.63828]
[1746452166485,8.04807,1804.6,1804.5,4.53]
[1746452167282,13.04807,1804.6,1804.5,4.53]
[1746452167491,1.10828,1804.5,1804.4,0.85733]
[1746452167689,4.00088,1804.5,1804.4,0.85733]
[1746452168192,7.73288,1804.5,1804.4,0.85733]
[1746452168592,1.10846,1804.2,1804.1,4.531]
[1746452168793,4.31626,1804.2,1804.1,4.531]
[1746452169095,8.04826,1804.2,1804.1,4.531]
[1746452169995,4.84046,1804.2,1804.1,4.531]